fUSD/lending_fUSD_20250602
["ID","MTS","AMOUNT","RATE_DAILY","PERIOD"]
[363723740,1748845838592,-420.0,0.00019178,2]
[363723742,1748845838601,-420.0,0.00019178,2]
[363723745,1748845838611,-420.0,0.00019178,2]
[363723747,1748845838620,-420.0,0.00019178,2]
[363723750,1748845838630,-420.0,0.00019178,2]
[363723753,1748845838639,-420.0,0.00019178,2]
[363723755,1748845838648,-420.0,0.00019178,2]
[363723757,1748845838657,-420.0,0.00019178,2]
[363723759,1748845838667,-328.54753254,0.00019178,2]
[363723762,1748845838676,-435.4,0.00019178,2]
[363723764,1748845838685,-420.0,0.00019178,2]
[363723766,1748845838694,-428.70425442,0.00019178,2]
[363723768,1748845838704,-420.0,0.00019178,2]
[363723770,1748845838713,-420.0,0.00019178,2]
[363723772,1748845838722,-432.76742241,0.00019178,2]
[363723774,1748845838731,-185.25455478,0.00019178,2]
[363723776,1748845838741,-420.0,0.00019178,2]
[363723778,1748845838750,-420.0,0.00019178,2]
[363723780,1748845838759,-550.54499761,0.00019178,2]
[363723782,1748845838769,-420.0,0.00019178,2]
[363723784,1748845838778,-420.0,0.00019178,2]
[363723786,1748845838787,-556.23,0.00019178,2]
[363723788,1748845838797,-512.44,0.00019178,2]
[363723790,1748845838806,-427.27768167,0.00019178,2]
[363723792,1748845838816,-420.0,0.00019178,2]
[363723795,1748845838826,-420.0,0.00019178,2]
[363723797,1748845838835,-163.90505064,0.00019178,2]
[363723800,1748845838844,-421.32972765,0.00019178,2]
[363723803,1748845838854,-164.68,0.00019178,2]
[363723829,1748845839084,-420.0,0.00019178,2]
[363723831,1748845839094,-420.0,0.00019178,2]
[363723833,1748845839103,-420.0,0.00019178,2]
[363723835,1748845839113,-222.97,0.00019178,2]
[363723837,1748845839122,-420.0,0.00019178,2]
[363723839,1748845839132,-420.0,0.00019178,2]
[363723841,1748845839141,-420.0,0.00019178,2]
[363723843,1748845839151,-420.0,0.00019178,2]
[363723845,1748845839161,-310.44329382,0.00019178,2]
[363723847,1748845839173,-420.0,0.00019178,2]
[363723849,1748845839182,-420.0,0.00019178,2]
[363723851,1748845839191,-420.0,0.00019178,2]
[363723853,1748845839200,-420.0,0.00019178,2]
[363723855,1748845839209,-423.2087084,0.00019178,2]
[363723857,1748845839218,-420.0,0.00019178,2]
[363723859,1748845839227,-297.61331403,0.00019178,2]
[363723861,1748845839237,-420.0,0.00019178,2]
[363723863,1748845839245,-420.0,0.00019178,2]
[363723865,1748845839255,-392.63734316,0.00019178,2]
[363723867,1748845839264,-420.0,0.00019178,2]
[363723869,1748845839274,-771.4,0.00019178,2]
[363723871,1748845839283,-497.68,0.00019178,2]
[363723873,1748845839292,-420.0,0.00019178,2]
[363723875,1748845839302,-420.0,0.00019178,2]
[363723877,1748845839311,-420.0,0.00019178,2]
[363723879,1748845839320,-420.0,0.00019178,2]
[363723881,1748845839329,-420.0,0.00019178,2]
[363723883,1748845839338,-420.0,0.00019178,2]
[363723884,1748845839348,-420.0,0.00019178,2]
[363723885,1748845839357,-423.08146551,0.00019178,2]
[363723886,1748845839367,-420.0,0.00019178,2]
[363723887,1748845839377,-420.0,0.00019178,2]
[363723888,1748845839387,-420.0,0.00019178,2]
[363723889,1748845839396,-420.0,0.00019178,2]
[363723890,1748845839406,-552.20023615,0.00019178,2]
[363723891,1748845839415,-420.0,0.00019178,2]
[363723892,1748845839424,-422.28619606,0.00019178,2]
[363723893,1748845839433,-3849.85,0.00019178,2]
[363723894,1748845839443,-420.0,0.00019178,2]
[363723895,1748845839451,-888.39,0.00019178,2]
[363723896,1748845839461,-456.31,0.00019178,2]
[363723897,1748845839470,-420.0,0.00019178,2]
[363723898,1748845839479,-420.0,0.00019178,2]
[363723899,1748845839489,-420.0,0.00019178,2]
[363723900,1748845839498,-420.0,0.00019178,2]
[363723901,1748845839507,-420.0,0.00019178,2]
[363723902,1748845839516,-426.59244524,0.00019178,2]
[363723903,1748845839525,-420.0,0.00019178,2]
[363723904,1748845839535,-962.99,0.00019178,2]
[363723905,1748845839544,-420.0,0.00019178,2]
[363723906,1748845839553,-420.0,0.00019178,2]
[363723907,1748845839563,-550.56,0.00019178,2]
[363723908,1748845839572,-420.0,0.00019178,2]
[363723909,1748845839581,-766.58,0.00019178,2]
[363723910,1748845839591,-627.87,0.00019178,2]
[363723911,1748845839600,-607.38,0.00019178,2]
[363723912,1748845839610,-249.25913039,0.00019178,2]
[363723913,1748845839858,-170.74086961,0.00019178,2]
[363723914,1748845839868,-420.0,0.00019178,2]
[363723915,1748845839878,-420.0,0.00019178,2]
[363723916,1748845839888,-294.76038046,0.00019178,2]
[363723917,1748845839897,-420.0,0.00019178,2]
[363723918,1748845839907,-420.0,0.00019178,2]
[363723919,1748845839916,-420.0,0.00019178,2]
[363723920,1748845839926,-420.0,0.00019178,2]
[363723921,1748845839936,-221.15105822,0.00019178,2]
[363723924,1748845840089,308.26,0.00013699,2]
[363723926,1748845840335,-201.76078415,0.00019178,2]
[363723927,1748845840346,-739.37,0.00019178,2]
[363723928,1748845840356,-420.0,0.00019178,2]
[363723929,1748845840366,-35.89865827,0.00019178,2]
[363723930,1748845840378,-384.10134173,0.00019178,2]
[363723931,1748845840388,-420.0,0.00019178,2]
[363723932,1748845840398,-420.0,0.00019178,2]
[363723933,1748845840408,-420.0,0.00019178,2]
[363723934,1748845840417,-1442.63,0.00019178,2]
[363723935,1748845840427,-420.0,0.00019178,2]
[363723936,1748845840436,-420.0,0.00019178,2]
[363723937,1748845840445,-420.0,0.00019178,2]
[363723938,1748845840455,-420.0,0.00019178,2]
[363723939,1748845840464,-420.0,0.00019178,2]
[363723940,1748845840473,-420.0,0.00019178,2]
[363723941,1748845840483,-420.0,0.00019178,2]
[363723942,1748845840492,-420.0,0.00019178,2]
[363723943,1748845840502,-473.88,0.00019178,2]
[363723944,1748845840511,-420.0,0.00019178,2]
[363723945,1748845840521,-420.0,0.00019178,2]
[363723946,1748845840530,-420.0,0.00019178,2]
[363723947,1748845840540,-420.0,0.00019178,2]
[363723948,1748845840550,-420.0,0.00019178,2]
[363723949,1748845840559,-196.93843411,0.00019178,2]
[363723950,1748845840569,-293.69,0.00019178,2]
[363723951,1748845840578,-366.41637373,0.00019178,2]
[363723952,1748845840587,-381.22493055,0.00019178,2]
[363723953,1748845840596,-652.48,0.00019178,2]
[363723954,1748845840605,-420.0,0.00019178,2]
[363723955,1748845840615,-103.6315785,0.00019178,2]
[363723956,1748845840636,-316.3684215,0.00019178,2]
[363723957,1748845840645,-420.0,0.00019178,2]
[363723958,1748845840654,-424.52308955,0.00019178,2]
[363723959,1748845840663,-420.0,0.00019178,2]
[363723961,1748845840672,-420.0,0.00019178,2]
[363723963,1748845840682,-420.0,0.00019178,2]
[363723965,1748845840691,-275.65,0.00019178,2]
[363723966,1748845840700,-181.80129191,0.00019178,2]
[363723968,1748845840710,-420.0,0.00019178,2]
[363723970,1748845840719,-420.0,0.00019178,2]
[363723972,1748845840728,-74.3895083,0.00019178,2]
[363723974,1748845840739,-123.3104917,0.00019178,2]
[363723976,1748845840749,-420.0,0.00019178,2]
[363723978,1748845840759,-560.38,0.00019178,2]
[363723980,1748845840768,-420.0,0.00019178,2]
[363723982,1748845840777,-2332.3,0.00019178,2]
[363723984,1748845840787,-420.0,0.00019178,2]
[363723986,1748845840796,-420.0,0.00019178,2]
[363723988,1748845840806,-420.0,0.00019178,2]
[363723990,1748845840815,-831.64,0.00019178,2]
[363723992,1748845840824,-430.10426338,0.00019178,2]
[363723994,1748845840834,-420.0,0.00019178,2]
[363723996,1748845840843,-420.0,0.00019178,2]
[363723998,1748845840852,-420.0,0.00019178,2]
[363724000,1748845840862,-420.0,0.00019178,2]
[363724003,1748845840871,-420.0,0.00019178,2]
[363724005,1748845840881,-420.0,0.00019178,2]
[363724007,1748845840890,-944.52,0.00019178,2]
[363724009,1748845840899,-150.48,0.00019178,2]
[363724011,1748845840909,-420.0,0.00019178,2]
[363724013,1748845840919,-514.52,0.00019178,2]
[363724015,1748845840928,-4335.42,0.00019178,2]
[363724017,1748845840938,-420.0,0.00019178,2]
[363724019,1748845840947,-420.0,0.00019178,2]
[363724021,1748845840957,-420.0,0.00019178,2]
[363724023,1748845840966,-420.0,0.00019178,2]
[363724025,1748845840975,-420.0,0.00019178,2]
[363724027,1748845840985,-420.0,0.00019178,2]
[363724029,1748845840994,-420.0,0.00019178,2]
[363724031,1748845841003,-420.0,0.00019178,2]
[363724033,1748845841012,-420.0,0.00019178,2]
[363724035,1748845841021,-841.33,0.00019178,2]
[363724037,1748845841031,-420.0,0.00019178,2]
[363724039,1748845841040,-420.0,0.00019178,2]
[363724041,1748845841050,-420.0,0.00019178,2]
[363724043,1748845841059,-420.0,0.00019178,2]
[363724044,1748845841069,-468.89,0.00019178,2]
[363724046,1748845841078,-420.0,0.00019178,2]
[363724048,1748845841087,-420.0,0.00019178,2]
[363724050,1748845841097,-420.0,0.00019178,2]
[363724052,1748845841106,-420.0,0.00019178,2]
[363724054,1748845841116,-465.11282989,0.00019178,2]
[363724056,1748845841128,-420.0,0.00019178,2]
[363724058,1748845841138,-150.79710376,0.00019178,2]
[363724060,1748845841148,-1231.87,0.00019178,2]
[363724062,1748845841158,-420.0,0.00019178,2]
[363724065,1748845841180,-420.0,0.00019178,2]
[363724067,1748845841191,-420.0,0.00019178,2]
[363724069,1748845841200,-420.0,0.00019178,2]
[363724071,1748845841211,-151.0,0.00019178,2]
[363724073,1748845841220,-166.33,0.00019178,2]
[363724075,1748845841231,-978.62,0.00019221,2]
[363724077,1748845841241,-999.99,0.00019221,2]
[363724079,1748845841250,-9999.99,0.00019221,2]
[363724081,1748845841261,-9999.99,0.00019221,2]
[363724084,1748845841271,-9999.99,0.00019221,2]
[363724086,1748845841281,-6915.26707363,0.00019221,2]
[363724088,1748845841299,-80.14292637,0.00019221,2]
[363724090,1748845841309,-9999.99,0.00019221,2]
[363724092,1748845841319,-299.99,0.00019221,4]
[363724094,1748845841328,-150.99,0.00019221,2]
[363724096,1748845841338,-150.99,0.00019221,2]
[363724098,1748845841349,-9557.879672,0.00019221,2]
[363724100,1748845841358,-4079.511833,0.00019276,2]
[363724102,1748845841368,-200.0,0.0001931,2]
[363724104,1748845841378,-420.0,0.00019315,2]
[363724106,1748845841390,-424.78,0.00019315,2]
[363724108,1748845841400,-196.61,0.00019315,2]
[363724110,1748845841410,-420.0,0.00019315,2]
[363724112,1748845841420,-420.0,0.00019315,2]
[363724115,1748845841430,-420.0,0.00019315,2]
[363724117,1748845841440,-325.15514838,0.00019315,2]
[363724119,1748845841449,-420.0,0.00019315,2]
[363724121,1748845841459,-210.07,0.00019315,2]
[363724123,1748845841469,-420.0,0.00019315,2]
[363724125,1748845841478,-420.0,0.00019315,2]
[363724127,1748845841488,-420.0,0.00019315,2]
[363724129,1748845841497,-420.0,0.00019315,2]
[363724131,1748845841508,-420.0,0.00019315,2]
[363724133,1748845841517,-420.0,0.00019315,2]
[363724135,1748845841527,-339.34,0.00019315,2]
[363724137,1748845841539,-420.0,0.00019315,2]
[363724139,1748845841551,-420.0,0.00019315,2]
[363724141,1748845841560,-771.4,0.00019315,2]
[363724143,1748845841569,-497.68,0.00019315,2]
[363724145,1748845841579,-420.0,0.00019315,2]
[363724147,1748845841588,-162.62,0.00019315,2]
[363724149,1748845841599,-420.0,0.00019315,2]
[363724151,1748845841608,-420.0,0.00019315,2]
[363724153,1748845841618,-257.91035816,0.00019315,2]
[363724155,1748845841628,-420.0,0.00019315,2]
[363724157,1748845841639,-3849.85,0.00019315,2]
[363724159,1748845841648,-888.39,0.00019315,2]
[363724161,1748845841657,-420.0,0.00019315,2]
[363724163,1748845841666,-962.99,0.00019315,2]
[363724165,1748845841676,-420.0,0.00019315,2]
[363724167,1748845841686,-420.0,0.00019315,2]
[363724169,1748845841696,-550.56,0.00019315,2]
[363724172,1748845841706,-420.0,0.00019315,2]
[363724174,1748845841716,-766.58,0.00019315,2]
[363724176,1748845841725,-627.87,0.00019315,2]
[363724178,1748845841736,-607.38,0.00019315,2]
[363724180,1748845841745,-420.0,0.00019315,2]
[363724182,1748845841755,-244.91771972,0.00019315,2]
[363724184,1748845841764,-420.0,0.00019315,2]
[363724185,1748845841773,-420.0,0.00019315,2]
[363724186,1748845841783,-420.0,0.00019315,2]
[363724187,1748845841792,-739.37,0.00019315,2]
[363724188,1748845841802,-420.0,0.00019315,2]
[363724189,1748845841812,-420.0,0.00019315,2]
[363724190,1748845841822,-420.0,0.00019315,2]
[363724191,1748845841831,-1442.63,0.00019315,2]
[363724192,1748845841841,-420.0,0.00019315,2]
[363724193,1748845841850,-420.0,0.00019315,2]
[363724194,1748845841860,-420.0,0.00019315,2]
[363724195,1748845841869,-420.0,0.00019315,2]
[363724196,1748845841879,-420.0,0.00019315,2]
[363724197,1748845841890,-473.88,0.00019315,2]
[363724198,1748845841900,-420.0,0.00019315,2]
[363724199,1748845841909,-420.0,0.00019315,2]
[363724200,1748845841920,-420.0,0.00019315,2]
[363724201,1748845841929,-652.48,0.00019315,2]
[363724202,1748845841939,-420.0,0.00019315,2]
[363724203,1748845841949,-420.0,0.00019315,2]
[363724204,1748845841959,-420.0,0.00019315,2]
[363724205,1748845841969,-420.0,0.00019315,2]
[363724206,1748845841979,-420.0,0.00019315,2]
[363724208,1748845841988,-417.95,0.00019315,2]
[363724210,1748845841998,-420.0,0.00019315,2]
[363724212,1748845842007,-560.38,0.00019315,2]
[363724214,1748845842017,-420.0,0.00019315,2]
[363724216,1748845842027,-2332.3,0.00019315,2]
[363724218,1748845842037,-420.0,0.00019315,2]
[363724220,1748845842047,-420.0,0.00019315,2]
[363724222,1748845842056,-831.64,0.00019315,2]
[363724224,1748845842066,-420.0,0.00019315,2]
[363724226,1748845842077,-420.0,0.00019315,2]
[363724228,1748845842087,-420.0,0.00019315,2]
[363724231,1748845842098,-944.52,0.00019315,2]
[363724233,1748845842107,-420.0,0.00019315,2]
[363724235,1748845842117,-514.52,0.00019315,2]
[363724237,1748845842127,-4335.42,0.00019315,2]
[363724239,1748845842136,-420.0,0.00019315,2]
[363724241,1748845842145,-420.0,0.00019315,2]
[363724243,1748845842155,-420.0,0.00019315,2]
[363724245,1748845842168,-420.0,0.00019315,2]
[363724247,1748845842178,-521.85,0.00019315,2]
[363724249,1748845842188,-420.0,0.00019315,2]
[363724251,1748845842198,-420.0,0.00019315,2]
[363724253,1748845842208,-841.33,0.00019315,2]
[363724255,1748845842217,-420.0,0.00019315,2]
[363724257,1748845842227,-420.0,0.00019315,2]
[363724259,1748845842236,-381.57876158,0.00019315,2]
[363724261,1748845842246,-468.89,0.00019315,2]
[363724263,1748845842255,-420.0,0.00019315,2]
[363724264,1748845842264,-420.0,0.00019315,2]
[363724265,1748845842273,-420.0,0.00019315,2]
[363724266,1748845842282,-420.0,0.00019315,2]
[363724267,1748845842291,-420.0,0.00019315,2]
[363724268,1748845842300,-1231.87,0.00019315,2]
[363724269,1748845842309,-420.0,0.00019315,2]
[363724270,1748845842318,-420.0,0.00019315,2]
[363724271,1748845842327,-154.89613363,0.00019441,2]
[363724272,1748845842336,-367.24,0.00019452,2]
[363724273,1748845842345,-424.78,0.00019452,2]
[363724274,1748845842354,-420.0,0.00019452,2]
[363724276,1748845842363,-420.0,0.00019452,2]
[363724278,1748845842373,-316.3821985,0.00019452,2]
[363724280,1748845842382,-420.0,0.00019452,2]
[363724281,1748845842391,-420.0,0.00019452,2]
[363724282,1748845842401,-397.84,0.00019452,2]
[363724283,1748845842411,-420.0,0.00019452,2]
[363724285,1748845842421,-771.4,0.00019452,2]
[363724286,1748845842431,-497.68,0.00019452,2]
[363724287,1748845842441,-420.0,0.00019452,2]
[363724288,1748845842451,-420.0,0.00019452,2]
[363724289,1748845842462,-420.0,0.00019452,2]
[363724290,1748845842473,-420.0,0.00019452,2]
[363724291,1748845842483,-3849.85,0.00019452,2]
[363724292,1748845842493,-888.39,0.00019452,2]
[363724293,1748845842503,-257.75904567,0.00019452,2]
[363724294,1748845842513,-962.99,0.00019452,2]
[363724295,1748845842522,-420.0,0.00019452,2]
[363724296,1748845842532,-550.56,0.00019452,2]
[363724297,1748845842542,-420.0,0.00019452,2]
[363724298,1748845842551,-766.58,0.00019452,2]
[363724299,1748845842560,-627.87,0.00019452,2]
[363724300,1748845842570,-607.38,0.00019452,2]
[363724301,1748845842580,-209.56,0.00019452,2]
[363724302,1748845842589,-420.0,0.00019452,2]
[363724303,1748845842599,-420.0,0.00019452,2]
[363724304,1748845842609,-420.0,0.00019452,2]
[363724305,1748845842619,-739.37,0.00019452,2]
[363724306,1748845842628,-420.0,0.00019452,2]
[363724307,1748845842639,-420.0,0.00019452,2]
[363724308,1748845842648,-1442.63,0.00019452,2]
[363724309,1748845842657,-420.0,0.00019452,2]
[363724310,1748845842667,-420.0,0.00019452,2]
[363724311,1748845842677,-420.0,0.00019452,2]
[363724312,1748845842686,-420.0,0.00019452,2]
[363724313,1748845842696,-420.0,0.00019452,2]
[363724314,1748845842706,-473.88,0.00019452,2]
[363724315,1748845842716,-420.0,0.00019452,2]
[363724316,1748845842726,-420.0,0.00019452,2]
[363724317,1748845842735,-420.0,0.00019452,2]
[363724318,1748845842745,-652.48,0.00019452,2]
[363724319,1748845842755,-420.0,0.00019452,2]
[363724320,1748845842764,-420.0,0.00019452,2]
[363724321,1748845842774,-420.0,0.00019452,2]
[363724322,1748845842783,-420.0,0.00019452,2]
[363724323,1748845842791,-420.0,0.00019452,2]
[363724324,1748845842800,-420.0,0.00019452,2]
[363724325,1748845842810,-560.38,0.00019452,2]
[363724326,1748845842820,-420.0,0.00019452,2]
[363724327,1748845842830,-2332.3,0.00019452,2]
[363724328,1748845842840,-420.0,0.00019452,2]
[363724329,1748845842850,-831.64,0.00019452,2]
[363724330,1748845842860,-420.0,0.00019452,2]
[363724331,1748845842870,-420.0,0.00019452,2]
[363724332,1748845842881,-420.0,0.00019452,2]
[363724333,1748845842891,-944.52,0.00019452,2]
[363724334,1748845842901,-420.0,0.00019452,2]
[363724335,1748845842911,-514.52,0.00019452,2]
[363724336,1748845842921,-4335.42,0.00019452,2]
[363724337,1748845842931,-420.0,0.00019452,2]
[363724338,1748845842941,-420.0,0.00019452,2]
[363724339,1748845842951,-420.0,0.00019452,2]
[363724340,1748845842962,-420.0,0.00019452,2]
[363724341,1748845842972,-420.0,0.00019452,2]
[363724342,1748845842982,-841.33,0.00019452,2]
[363724343,1748845842993,-420.0,0.00019452,2]
[363724344,1748845843003,-420.0,0.00019452,2]
[363724345,1748845843013,-468.89,0.00019452,2]
[363724347,1748845843023,-420.0,0.00019452,2]
[363724348,1748845843034,-420.0,0.00019452,2]
[363724349,1748845843044,-420.0,0.00019452,2]
[363724350,1748845843055,-420.0,0.00019452,2]
[363724351,1748845843302,-420.0,0.00019452,2]
[363724352,1748845843312,-1231.87,0.00019452,2]
[363724353,1748845843321,-420.0,0.00019452,2]
[363724354,1748845843332,-150.0,0.000195,2]
[363724355,1748845843342,-6215.10868026,0.000195,2]
[363724356,1748845843351,-267.27,0.0001951,2]
[363724357,1748845843361,-6215.10868026,0.00019544,2]
[363724358,1748845843370,-500.0,0.00019588,2]
[363724359,1748845843380,-500.0,0.00019588,2]
[363724360,1748845843390,-424.78,0.00019589,2]
[363724361,1748845843400,-420.0,0.00019589,2]
[363724362,1748845843410,-341.58,0.00019589,2]
[363724363,1748845843421,-204.76,0.00019589,2]
[363724364,1748845843431,-230.28,0.00019589,2]
[363724365,1748845843441,-420.0,0.00019589,2]
[363724366,1748845843451,-771.4,0.00019589,2]
[363724367,1748845843461,-497.68,0.00019589,2]
[363724368,1748845843470,-420.0,0.00019589,2]
[363724369,1748845843480,-420.0,0.00019589,2]
[363724370,1748845843489,-420.0,0.00019589,2]
[363724371,1748845843499,-420.0,0.00019589,2]
[363724372,1748845843510,-3849.85,0.00019589,2]
[363724373,1748845843520,-888.39,0.00019589,2]
[363724374,1748845843530,-962.99,0.00019589,2]
[363724375,1748845843539,-420.0,0.00019589,2]
[363724376,1748845843549,-550.56,0.00019589,2]
[363724377,1748845843559,-159.16257028,0.00019589,2]
[363724378,1748845843569,-766.58,0.00019589,2]
[363724379,1748845843579,-627.87,0.00019589,2]
[363724381,1748845843589,-607.38,0.00019589,2]
[363724382,1748845843599,-420.0,0.00019589,2]
[363724383,1748845843609,-420.0,0.00019589,2]
[363724384,1748845843619,-420.0,0.00019589,2]
[363724385,1748845843628,-739.37,0.00019589,2]
[363724386,1748845843638,-420.0,0.00019589,2]
[363724387,1748845843647,-530.36453156,0.00019589,2]
[363724388,1748845843657,-1442.63,0.00019589,2]
[363724389,1748845843667,-420.0,0.00019589,2]
[363724390,1748845843677,-412.68,0.00019589,2]
[363724391,1748845843687,-420.0,0.00019589,2]
[363724392,1748845843698,-420.0,0.00019589,2]
[363724393,1748845843708,-420.0,0.00019589,2]
[363724394,1748845843718,-473.88,0.00019589,2]
[363724395,1748845843728,-277.92,0.00019589,2]
[363724396,1748845843737,-420.0,0.00019589,2]
[363724397,1748845843747,-652.48,0.00019589,2]
[363724398,1748845843757,-420.0,0.00019589,2]
[363724399,1748845843767,-420.0,0.00019589,2]
[363724400,1748845843777,-420.0,0.00019589,2]
[363724401,1748845843787,-420.0,0.00019589,2]
[363724402,1748845843797,-364.9538613,0.00019589,2]
[363724403,1748845843806,-420.0,0.00019589,2]
[363724404,1748845843816,-560.38,0.00019589,2]
[363724405,1748845843826,-420.0,0.00019589,2]
[363724406,1748845843836,-2332.3,0.00019589,2]
[363724407,1748845843846,-420.0,0.00019589,2]
[363724408,1748845843855,-831.64,0.00019589,2]
[363724409,1748845843865,-420.0,0.00019589,2]
[363724410,1748845843875,-420.0,0.00019589,2]
[363724411,1748845843884,-944.52,0.00019589,2]
[363724412,1748845843894,-420.0,0.00019589,2]
[363724413,1748845843903,-514.52,0.00019589,2]
[363724414,1748845843913,-4335.42,0.00019589,2]
[363724415,1748845843923,-323.42031266,0.00019589,2]
[363724416,1748845843933,-420.0,0.00019589,2]
[363724417,1748845843943,-275.74,0.00019589,2]
[363724418,1748845843953,-420.0,0.00019589,2]
[363724419,1748845843963,-420.0,0.00019589,2]
[363724420,1748845843973,-841.33,0.00019589,2]
[363724421,1748845843983,-420.0,0.00019589,2]
[363724422,1748845843993,-420.0,0.00019589,2]
[363724423,1748845844002,-468.89,0.00019589,2]
[363724424,1748845844012,-420.0,0.00019589,2]
[363724425,1748845844022,-420.0,0.00019589,2]
[363724426,1748845844032,-420.0,0.00019589,2]
[363724427,1748845844042,-420.0,0.00019589,2]
[363724428,1748845844051,-420.0,0.00019589,2]
[363724429,1748845844061,-1231.87,0.00019589,2]
[363724430,1748845844071,-420.0,0.00019589,2]
[363724431,1748845844081,-1414.68737,0.00019599,2]
[363724432,1748845844091,-908.11,0.000196,2]
[363724433,1748845844100,-1161.54,0.000196,2]
[363724434,1748845844110,-807.1,0.000196,2]
[363724435,1748845844119,-150.0,0.000196,2]
[363724436,1748845844128,-460.6,0.000196,2]
[363724437,1748845844138,-354.01,0.000196,2]
[363724438,1748845844148,-170.4,0.000196,2]
[363724439,1748845844158,-150.0,0.000196,2]
[363724440,1748845844172,-300.0,0.000196,2]
[363724441,1748845844182,-1000.0,0.000196,2]
[363724442,1748845844192,-1000.0,0.00019626,2]
[363724443,1748845844202,-1000.0,0.000197,2]
[363724444,1748845844212,-151.0,0.00019714,2]
[363724445,1748845844222,-424.78,0.00019726,2]
[363724446,1748845844232,-260.96,0.00019726,2]
[363724447,1748845844241,-420.0,0.00019726,2]
[363724448,1748845844251,-771.4,0.00019726,2]
[363724449,1748845844261,-497.68,0.00019726,2]
[363724450,1748845844271,-420.0,0.00019726,2]
[363724451,1748845844280,-420.0,0.00019726,2]
[363724452,1748845844290,-420.0,0.00019726,2]
[363724453,1748845844300,-420.0,0.00019726,2]
[363724454,1748845844310,-3849.85,0.00019726,2]
[363724455,1748845844321,-888.39,0.00019726,2]
[363724456,1748845844330,-962.99,0.00019726,2]
[363724457,1748845844339,-420.0,0.00019726,2]
[363724458,1748845844349,-550.56,0.00019726,2]
[363724459,1748845844359,-766.58,0.00019726,2]
[363724460,1748845844368,-627.87,0.00019726,2]
[363724461,1748845844379,-607.38,0.00019726,2]
[363724462,1748845844388,-420.0,0.00019726,2]
[363724463,1748845844398,-420.0,0.00019726,2]
[363724464,1748845844407,-420.0,0.00019726,2]
[363724465,1748845844417,-739.37,0.00019726,2]
[363724466,1748845844427,-420.0,0.00019726,2]
[363724467,1748845844437,-1442.63,0.00019726,2]
[363724468,1748845844447,-420.0,0.00019726,2]
[363724469,1748845844457,-420.0,0.00019726,2]
[363724470,1748845844467,-420.0,0.00019726,2]
[363724471,1748845844476,-420.0,0.00019726,2]
[363724472,1748845844486,-473.88,0.00019726,2]
[363724473,1748845844496,-420.0,0.00019726,2]
[363724474,1748845844505,-652.48,0.00019726,2]
[363724475,1748845844515,-420.0,0.00019726,2]
[363724476,1748845844525,-420.0,0.00019726,2]
[363724478,1748845844535,-420.0,0.00019726,2]
[363724479,1748845844545,-447.96,0.00019726,2]